fUSD/lending_fUSD_20240428
["ID","MTS","AMOUNT","RATE_DAILY","PERIOD"]
[324808297,1714339919325,-7394.13,0.00013972,2]
[324808298,1714339919336,-500.0,0.00013972,2]
[324808299,1714339919347,-2704.4,0.00013972,2]
[324808300,1714339919357,-500.0,0.00013972,2]
[324808301,1714339919367,-547.48,0.00013972,2]
[324808302,1714339919378,-603.57991909,0.00013972,2]
[324808303,1714339919388,-869.1,0.00013972,2]
[324808304,1714339919399,-500.0,0.00013972,2]
[324808305,1714339919411,-3366.67,0.00013972,2]
[324808306,1714339919422,-709.72,0.00013972,2]
[324808307,1714339919435,-849.0,0.00013972,2]
[324808308,1714339919448,-4609.23,0.00013972,2]
[324808309,1714339919458,-1257.26,0.00013972,2]
[324808310,1714339919467,-500.0,0.00013972,2]
[324808311,1714339919477,-972.25,0.00013972,2]
[324808312,1714339919487,-1051.8,0.00013972,2]
[324808313,1714339919496,-1129.36,0.00013972,2]
[324808314,1714339919506,-500.0,0.00013972,2]
[324808315,1714339919516,-1721.28,0.00013972,2]
[324808316,1714339919526,-1025.92,0.00013972,2]
[324808317,1714339919537,-505.66,0.00013972,2]
[324808318,1714339919551,-500.0,0.00013972,2]
[324808319,1714339919562,-500.0,0.00013972,2]
[324808320,1714339919573,-784.13,0.00013972,2]
[324808321,1714339919585,-3106.8,0.00013972,2]
[324808322,1714339919595,-1332.25,0.00013972,2]
[324808323,1714339919604,-1770.89,0.00013972,2]
[324808324,1714339919615,-500.0,0.00013972,2]
[324808325,1714339919628,-3285.67,0.00013972,2]
[324808326,1714339919639,-500.0,0.00013972,2]
[324808327,1714339919650,-1973.0,0.00013972,2]
[324808328,1714339919659,-500.0,0.00013972,2]
[324808329,1714339919669,-581.39,0.00013972,2]
[324808330,1714339919678,-5056.57,0.00013972,2]
[324808331,1714339919688,-500.0,0.00013972,2]
[324808332,1714339919697,-528.94,0.00013972,2]
[324808333,1714339919708,-1960.25,0.00013972,2]
[324808334,1714339919718,-500.0,0.00013972,2]
[324808335,1714339919729,-854.46,0.00013972,2]
[324808336,1714339919740,-500.0,0.00013972,2]
[324808337,1714339919750,-505.33,0.00013972,2]
[324808338,1714339919760,-1460.22,0.00013972,2]
[324808339,1714339919770,-500.0,0.00013972,2]
[324808340,1714339919780,-500.0,0.00013972,2]
[324808341,1714339919792,-4144.13,0.00013972,2]
[324808342,1714339919802,-2730.97,0.00013972,2]
[324808343,1714339919813,-2002.94,0.00013972,2]
[324808344,1714339919824,-1318.77,0.00013972,2]
[324808345,1714339919835,-500.0,0.00013972,2]
[324808346,1714339919845,-1001.05,0.00013972,2]
[324808347,1714339919855,-500.0,0.00013972,2]
[324808348,1714339919869,-500.0,0.00013972,2]
[324808349,1714339919879,-9331.99,0.00013972,2]
[324808350,1714339919890,-4277.49,0.00013972,2]
[324808351,1714339919900,-500.0,0.00013972,2]
[324808352,1714339919910,-5193.46,0.00013972,2]
[324808353,1714339919919,-775.85,0.00013972,2]
[324808354,1714339919929,-500.0,0.00013972,2]
[324808355,1714339919939,-743.46,0.00013972,2]
[324808356,1714339919949,-500.0,0.00013972,2]
[324808357,1714339919960,-150.85,0.00014,2]
[324808358,1714339919970,-160.64,0.00014178,2]
[324808359,1714339919980,-200.0,0.00014189,2]
[324808360,1714339919990,-1000.0,0.00014189,2]
[324808361,1714339919999,-500.0,0.00014246,2]
[324808362,1714339920009,-500.0,0.00014246,2]
[324808363,1714339920019,-500.0,0.00014246,2]
[324808364,1714339920028,-500.0,0.00014246,2]
[324808365,1714339920038,-500.0,0.00014246,2]
[324808366,1714339920047,-506.83,0.00014246,2]
[324808367,1714339920057,-500.0,0.00014246,2]
[324808368,1714339920067,-500.0,0.00014246,2]
[324808369,1714339920077,-500.0,0.00014246,2]
[324808370,1714339920087,-500.0,0.00014246,2]
[324808371,1714339920097,-500.0,0.00014246,2]
[324808372,1714339920107,-500.0,0.00014246,2]
[324808373,1714339920117,-500.0,0.00014246,2]
[324808374,1714339920126,-500.0,0.00014246,2]
[324808375,1714339920136,-500.0,0.00014246,2]
[324808376,1714339920146,-500.0,0.00014246,2]
[324808377,1714339920156,-517.57,0.00014246,2]
[324808378,1714339920166,-586.34,0.00014246,2]
[324808379,1714339920176,-733.89,0.00014246,2]
[324808380,1714339920185,-674.04,0.00014246,2]
[324808381,1714339920196,-500.0,0.00014246,2]
[324808382,1714339920206,-559.85991854,0.00014246,2]
[324808383,1714339920215,-500.0,0.00014246,2]
[324808384,1714339920225,-500.0,0.00014246,2]
[324808385,1714339920234,-500.0,0.00014246,2]
[324808386,1714339920243,-500.0,0.00014246,2]
[324808387,1714339920253,-552.07,0.00014246,2]
[324808388,1714339920264,-588.66,0.00014246,2]
[324808389,1714339920274,-500.0,0.00014246,2]
[324808390,1714339920284,-500.0,0.00014246,2]
[324808391,1714339920294,-798.42,0.00014246,2]
[324808392,1714339920306,-500.0,0.00014246,2]
[324808393,1714339920316,-928.66,0.00014246,2]
[324808394,1714339920326,-505.51,0.00014246,2]
[324808395,1714339920335,-500.0,0.00014246,2]
[324808396,1714339920345,-903.89,0.00014246,2]
[324808397,1714339920518,-737.63,0.00014246,2]
[324808398,1714339920528,-500.0,0.00014246,2]
[324808399,1714339920538,-500.0,0.00014246,2]
[324808400,1714339920547,-864.97,0.00014246,2]
[324808401,1714339920557,-718.49,0.00014246,2]
[324808402,1714339920566,-504.53,0.00014246,2]
[324808403,1714339920576,-594.05,0.00014246,2]
[324808404,1714339920585,-225.55299272,0.00014246,2]
[324808405,1714339920595,-500.0,0.00014246,2]
[324808406,1714339920604,-500.0,0.00014246,2]
[324808407,1714339920613,-500.0,0.00014246,2]
[324808408,1714339920622,-870.38,0.00014246,2]
[324808409,1714339920632,-501.18,0.00014246,2]
[324808410,1714339920641,-500.0,0.00014246,2]
[324808411,1714339920651,-500.0,0.00014246,2]
[324808412,1714339920660,-500.0,0.00014246,2]
[324808413,1714339920669,-334.53323977,0.00014246,2]
[324808414,1714339920679,-500.0,0.00014246,2]
[324808415,1714339920688,-500.0,0.00014246,2]
[324808416,1714339920697,-500.0,0.00014246,2]
[324808417,1714339920707,-610.01,0.00014246,2]
[324808418,1714339920716,-500.0,0.00014246,2]
[324808419,1714339920725,-567.57,0.00014246,2]
[324808420,1714339920734,-500.0,0.00014246,2]
[324808421,1714339920743,-1451.39,0.00014246,2]
[324808422,1714339920753,-500.0,0.00014246,2]
[324808423,1714339920762,-333.86378482,0.00014246,2]
[324808424,1714339920771,-1302.89,0.00014246,2]
[324808425,1714339920781,-500.0,0.00014246,2]
[324808426,1714339920793,-545.45,0.00014246,2]
[324808427,1714339920802,-500.0,0.00014246,2]
[324808428,1714339920811,-500.0,0.00014246,2]
[324808429,1714339920820,-500.0,0.00014246,2]
[324808430,1714339920830,-500.0,0.00014246,2]
[324808431,1714339920839,-525.6,0.00014246,2]
[324808432,1714339920849,-500.0,0.00014246,2]
[324808433,1714339920860,-500.0,0.00014246,2]
[324808434,1714339920869,-585.48,0.00014246,2]
[324808435,1714339920878,-584.64,0.00014246,2]
[324808436,1714339920887,-857.33,0.00014246,2]
[324808437,1714339920896,-500.0,0.00014246,2]
[324808438,1714339920905,-704.02,0.00014246,2]
[324808439,1714339920914,-500.0,0.00014246,2]
[324808440,1714339920922,-1320.75,0.00014246,2]
[324808441,1714339920932,-500.0,0.00014246,2]
[324808442,1714339920941,-426.83,0.00014246,2]
[324808443,1714339920950,-507.58,0.00014246,2]
[324808444,1714339920958,-500.0,0.00014246,2]
[324808445,1714339920967,-730.12,0.00014246,2]
[324808446,1714339920976,-596.65,0.00014246,2]
[324808447,1714339920985,-500.0,0.00014246,2]
[324808448,1714339920994,-369.9,0.00014246,2]
[324808449,1714339921003,-565.97,0.00014246,2]
[324808450,1714339921011,-500.0,0.00014246,2]
[324808451,1714339921020,-875.78,0.00014246,2]
[324808452,1714339921029,-500.0,0.00014246,2]
[324808453,1714339921039,-500.0,0.00014246,2]
[324808454,1714339921049,-526.69,0.00014246,2]
[324808455,1714339921059,-560.54,0.00014246,2]
[324808456,1714339921069,-736.07,0.00014246,2]
[324808457,1714339921078,-500.0,0.00014246,2]
[324808458,1714339921088,-604.78,0.00014246,2]
[324808459,1714339921098,-500.0,0.00014246,2]
[324808460,1714339921108,-500.0,0.00014246,2]
[324808461,1714339921118,-500.0,0.00014246,2]
[324808462,1714339921128,-500.0,0.00014246,2]
[324808463,1714339921138,-523.54,0.00014246,2]
[324808464,1714339921149,-2956.01,0.00014246,2]
[324808465,1714339921159,-500.0,0.00014246,2]
[324808466,1714339921168,-565.94,0.00014246,2]
[324808467,1714339921177,-500.0,0.00014246,2]
[324808468,1714339921186,-500.0,0.00014246,2]
[324808469,1714339921196,-500.0,0.00014246,2]
[324808470,1714339921205,-825.93,0.00014246,2]
[324808471,1714339921215,-602.04,0.00014246,2]
[324808472,1714339921224,-651.65,0.00014246,2]
[324808473,1714339921233,-1568.74,0.00014246,2]
[324808474,1714339921242,-520.26,0.00014246,2]
[324808475,1714339921251,-500.0,0.00014246,2]
[324808476,1714339921262,-500.0,0.00014246,2]
[324808477,1714339921272,-500.0,0.00014246,2]
[324808478,1714339921281,-1140.77,0.00014246,2]
[324808479,1714339921291,-500.0,0.00014246,2]
[324808480,1714339921300,-549.86,0.00014246,2]
[324808481,1714339921310,-960.02,0.00014246,2]
[324808482,1714339921319,-1723.08,0.00014246,2]
[324808483,1714339921328,-500.0,0.00014246,2]
[324808484,1714339921338,-500.0,0.00014246,2]
[324808485,1714339921347,-500.0,0.00014246,2]
[324808486,1714339921357,-500.0,0.00014246,2]
[324808487,1714339921366,-555.74,0.00014246,2]
[324808488,1714339921376,-500.0,0.00014246,2]
[324808489,1714339921386,-500.0,0.00014246,2]
[324808490,1714339921395,-1272.72,0.00014246,2]
[324808491,1714339921404,-500.0,0.00014246,2]
[324808492,1714339921414,-1044.49,0.00014246,2]
[324808493,1714339921424,-854.35,0.00014246,2]
[324808494,1714339921435,-500.0,0.00014246,2]
[324808495,1714339921445,-880.39,0.00014246,2]
[324808496,1714339921454,-500.0,0.00014246,2]
[324808497,1714339921463,-1228.27,0.00014246,2]
[324808498,1714339921473,-500.0,0.00014246,2]
[324808499,1714339921482,-729.04,0.00014246,2]
[324808500,1714339921491,-500.0,0.00014246,2]
[324808501,1714339921500,-500.0,0.00014246,2]
[324808502,1714339921510,-530.05,0.00014246,2]
[324808503,1714339921520,-3505.37,0.00014246,2]
[324808504,1714339921529,-797.92,0.00014246,2]
[324808505,1714339921539,-529.45,0.00014246,2]
[324808506,1714339921548,-629.63,0.00014246,2]
[324808507,1714339921558,-500.0,0.00014246,2]
[324808508,1714339921568,-1082.28,0.00014246,2]
[324808509,1714339921578,-500.0,0.00014246,2]
[324808510,1714339921587,-3192.23,0.00014246,2]
[324808511,1714339921596,-500.0,0.00014246,2]
[324808512,1714339921606,-500.0,0.00014246,2]
[324808513,1714339921615,-4836.83,0.00014246,2]
[324808514,1714339921624,-500.0,0.00014246,2]
[324808515,1714339921634,-1419.08,0.00014246,2]
[324808516,1714339921643,-3170.41,0.00014246,2]
[324808517,1714339921652,-500.0,0.00014246,2]
[324808518,1714339921662,-500.0,0.00014246,2]
[324808519,1714339921671,-500.0,0.00014246,2]
[324808520,1714339921681,-1075.74,0.00014246,2]
[324808521,1714339921691,-554.07,0.00014246,2]
[324808522,1714339921701,-3460.09,0.00014246,2]
[324808523,1714339921711,-1169.99,0.00014246,2]
[324808524,1714339921720,-812.15,0.00014246,2]
[324808525,1714339921729,-9425.46,0.00014246,2]
[324808526,1714339921738,-1842.15,0.00014246,2]
[324808527,1714339921748,-500.0,0.00014246,2]
[324808528,1714339921759,-500.0,0.00014246,2]
[324808529,1714339921768,-1069.53,0.00014246,2]
[324808530,1714339921779,-500.0,0.00014246,2]
[324808531,1714339921795,-500.0,0.00014246,2]
[324808532,1714339921804,-395.26646344,0.00014246,2]
[324808533,1714339921813,-500.0,0.00014246,2]
[324808534,1714339921823,-500.0,0.00014246,2]
[324808535,1714339921832,-500.0,0.00014246,2]
[324808536,1714339921842,-14272.99,0.00014246,2]
[324808537,1714339921851,-544.14,0.00014246,2]
[324808538,1714339921861,-7051.41,0.00014246,2]
[324808539,1714339921873,-500.0,0.00014246,2]
[324808540,1714339921883,-2707.78,0.00014246,2]
[324808541,1714339921892,-500.0,0.00014246,2]
[324808542,1714339921902,-1038.22,0.00014246,2]
[324808543,1714339921911,-789.36,0.00014246,2]
[324808544,1714339921920,-2766.64,0.00014246,2]
[324808545,1714339921929,-987.03,0.00014246,2]
[324808546,1714339921939,-1211.54,0.00014246,2]
[324808547,1714339921948,-675.35,0.00014246,2]
[324808548,1714339921957,-1666.13,0.00014246,2]
[324808549,1714339921967,-500.0,0.00014246,2]
[324808550,1714339921977,-1516.18,0.00014246,2]
[324808551,1714339921986,-1349.22,0.00014246,2]
[324808552,1714339921995,-500.0,0.00014246,2]
[324808553,1714339922004,-6591.59,0.00014246,2]
[324808554,1714339922014,-1899.29,0.00014246,2]
[324808555,1714339922024,-783.36,0.00014246,2]
[324808556,1714339922033,-1988.95,0.00014246,2]
[324808557,1714339922042,-500.0,0.00014246,2]
[324808558,1714339922052,-1261.65,0.00014246,2]
[324808559,1714339922061,-2135.06,0.00014246,2]
[324808560,1714339922070,-500.0,0.00014246,2]
[324808561,1714339922079,-562.7,0.00014246,2]
[324808562,1714339922088,-500.0,0.00014246,2]
[324808563,1714339922097,-500.0,0.00014246,2]
[324808564,1714339922107,-6232.35,0.00014246,2]
[324808565,1714339922116,-1410.0,0.00014246,2]
[324808566,1714339922126,-659.22,0.00014246,2]
[324808567,1714339922135,-1672.92,0.00014246,2]
[324808568,1714339922144,-1799.04,0.00014246,2]
[324808569,1714339922153,-500.0,0.00014246,2]
[324808570,1714339922163,-895.24,0.00014246,2]
[324808571,1714339922172,-1513.28,0.00014246,2]
[324808572,1714339922181,-6800.76,0.00014246,2]
[324808573,1714339922191,-500.0,0.00014246,2]
[324808574,1714339922200,-753.18,0.00014246,2]
[324808575,1714339922209,-500.0,0.00014246,2]
[324808576,1714339922219,-1733.37,0.00014246,2]
[324808577,1714339922228,-782.1,0.00014246,2]
[324808578,1714339922238,-1652.85,0.00014246,2]
[324808579,1714339922247,-500.0,0.00014246,2]
[324808580,1714339922257,-1590.77,0.00014246,2]
[324808581,1714339922266,-12133.37,0.00014246,2]
[324808582,1714339922276,-2025.62,0.00014246,2]
[324808583,1714339922285,-1135.8,0.00014246,2]
[324808584,1714339922295,-1421.85,0.00014246,2]
[324808585,1714339922305,-500.0,0.00014246,2]
[324808586,1714339922315,-4575.67,0.00014246,2]
[324808587,1714339922324,-500.0,0.00014246,2]
[324808588,1714339922333,-6107.04,0.00014246,2]
[324808589,1714339922343,-1396.35,0.00014246,2]
[324808590,1714339922352,-998.38,0.00014246,2]
[324808591,1714339922362,-2527.69,0.00014246,2]
[324808592,1714339922372,-2789.13,0.00014246,2]
[324808593,1714339922381,-1761.96,0.00014246,2]
[324808594,1714339922390,-1062.84,0.00014246,2]
[324808595,1714339922400,-500.0,0.00014246,2]
[324808596,1714339922409,-1977.9,0.00014246,2]
[324808597,1714339922419,-2491.39,0.00014246,2]
[324808598,1714339922428,-3361.84,0.00014246,2]
[324808599,1714339922438,-1098.32,0.00014246,2]
[324808600,1714339922448,-1081.51,0.00014246,2]
[324808601,1714339922457,-2735.15,0.00014246,2]
[324808602,1714339922466,-500.0,0.00014246,2]
[324808603,1714339922476,-1862.58,0.00014246,2]
[324808604,1714339922485,-4338.42,0.00014246,2]
[324808605,1714339922495,-1752.48,0.00014246,2]
[324808606,1714339922504,-844.65,0.00014246,2]
[324808607,1714339922514,-2116.48,0.00014246,2]
[324808608,1714339922523,-500.0,0.00014246,2]
[324808609,1714339922533,-1415.56,0.00014246,2]
[324808610,1714339922543,-552.51,0.00014246,2]
[324808611,1714339922554,-1696.77,0.00014246,2]
[324808612,1714339922563,-500.0,0.00014246,2]
[324808613,1714339922572,-7394.13,0.00014246,2]
[324808614,1714339922583,-500.0,0.00014246,2]
[324808615,1714339922592,-2704.4,0.00014246,2]
[324808616,1714339922601,-500.0,0.00014246,2]
[324808617,1714339922612,-547.48,0.00014246,2]
[324808618,1714339922622,-869.1,0.00014246,2]
[324808619,1714339922632,-500.0,0.00014246,2]
[324808620,1714339922642,-3366.67,0.00014246,2]
[324808621,1714339922651,-709.72,0.00014246,2]
[324808622,1714339922660,-849.0,0.00014246,2]
[324808623,1714339922668,-4609.23,0.00014246,2]
[324808624,1714339922678,-1257.26,0.00014246,2]
[324808625,1714339922687,-500.0,0.00014246,2]
[324808626,1714339922698,-972.25,0.00014246,2]
[324808627,1714339922707,-1051.8,0.00014246,2]
[324808628,1714339922716,-1129.36,0.00014246,2]
[324808629,1714339922726,-500.0,0.00014246,2]
[324808630,1714339922736,-1721.28,0.00014246,2]
[324808631,1714339922746,-1025.92,0.00014246,2]
[324808632,1714339922756,-505.66,0.00014246,2]
[324808633,1714339922766,-500.0,0.00014246,2]
[324808634,1714339922777,-500.0,0.00014246,2]
[324808635,1714339922790,-784.13,0.00014246,2]
[324808636,1714339922801,-3106.8,0.00014246,2]
[324808637,1714339922810,-1332.25,0.00014246,2]
[324808638,1714339922820,-1770.89,0.00014246,2]
[324808639,1714339922832,-3285.67,0.00014246,2]
[324808640,1714339922843,-500.0,0.00014246,2]
[324808641,1714339922854,-500.0,0.00014246,2]
[324808642,1714339922865,-1973.0,0.00014246,2]
[324808643,1714339922875,-500.0,0.00014246,2]
[324808644,1714339922884,-581.39,0.00014246,2]
[324808645,1714339922893,-5056.57,0.00014246,2]
[324808646,1714339922902,-500.0,0.00014246,2]
[324808647,1714339922912,-528.94,0.00014246,2]
[324808648,1714339922921,-1960.25,0.00014246,2]
[324808649,1714339922930,-500.0,0.00014246,2]
[324808650,1714339922940,-854.46,0.00014246,2]
[324808651,1714339922949,-500.0,0.00014246,2]
[324808652,1714339922959,-505.33,0.00014246,2]
[324808653,1714339922968,-1460.22,0.00014246,2]
[324808654,1714339922978,-500.0,0.00014246,2]
[324808655,1714339922987,-500.0,0.00014246,2]
[324808656,1714339922996,-4144.13,0.00014246,2]
[324808657,1714339923006,-2730.97,0.00014246,2]
[324808658,1714339923015,-2002.94,0.00014246,2]
[324808659,1714339923023,-1318.77,0.00014246,2]
[324808660,1714339923033,-500.0,0.00014246,2]
[324808661,1714339923043,-1001.05,0.00014246,2]
[324808662,1714339923052,-500.0,0.00014246,2]
[324808663,1714339923061,-500.0,0.00014246,2]
[324808664,1714339923071,-9331.99,0.00014246,2]
[324808665,1714339923080,-4277.49,0.00014246,2]
[324808666,1714339923090,-500.0,0.00014246,2]
[324808667,1714339923099,-5193.46,0.00014246,2]
[324808668,1714339923108,-775.85,0.00014246,2]
[324808669,1714339923117,-500.0,0.00014246,2]
[324808670,1714339923126,-743.46,0.00014246,2]
[324808671,1714339923135,-500.0,0.00014246,2]
[324808672,1714339923144,-910.96,0.00014247,2]
[324808673,1714339923154,-414.05,0.00014247,2]
[324808674,1714339923164,-200.0,0.00014351,2]
[324808675,1714339923173,-518.0,0.00014466,2]
[324808676,1714339923184,-157.05263004,0.00014509,2]
[324808677,1714339923194,-500.0,0.0001452,2]
[324808678,1714339923202,-500.0,0.0001452,2]
[324808679,1714339923211,-223.24276729,0.0001452,2]
[324808680,1714339923221,-500.0,0.0001452,2]
[324808681,1714339923231,-500.0,0.0001452,2]
[324808682,1714339923240,-506.83,0.0001452,2]
[324808683,1714339923251,-500.0,0.0001452,2]
[324808684,1714339923261,-500.0,0.0001452,2]
[324808685,1714339923270,-318.65853592,0.0001452,2]
[324808686,1714339923279,-500.0,0.0001452,2]
[324808687,1714339923288,-500.0,0.0001452,2]
[324808688,1714339923297,-500.0,0.0001452,2]
[324808689,1714339923307,-360.1430931,0.0001452,2]
[324808690,1714339923317,-500.0,0.0001452,2]
[324808691,1714339923328,-500.0,0.0001452,2]
[324808692,1714339923337,-500.0,0.0001452,2]
[324808693,1714339923347,-517.57,0.0001452,2]
[324808694,1714339923356,-586.34,0.0001452,2]
[324808695,1714339923366,-733.89,0.0001452,2]
[324808696,1714339923375,-674.04,0.0001452,2]
[324808697,1714339923384,-500.0,0.0001452,2]
[324808698,1714339923393,-500.0,0.0001452,2]
[324808699,1714339923403,-500.0,0.0001452,2]
[324808700,1714339923412,-500.0,0.0001452,2]
[324808701,1714339923422,-455.40045736,0.0001452,2]
[324808702,1714339923431,-552.07,0.0001452,2]
[324808703,1714339923441,-588.66,0.0001452,2]
[324808704,1714339923453,-500.0,0.0001452,2]
[324808705,1714339923462,-500.0,0.0001452,2]
[324808706,1714339923471,-798.42,0.0001452,2]
[324808707,1714339923480,-500.0,0.0001452,2]
[324808708,1714339923489,-928.66,0.0001452,2]
[324808709,1714339923498,-505.51,0.0001452,2]
[324808710,1714339923507,-500.0,0.0001452,2]
[324808711,1714339923518,-903.89,0.0001452,2]
[324808712,1714339923528,-737.63,0.0001452,2]
[324808713,1714339923538,-441.87239322,0.0001452,2]
[324808714,1714339923547,-500.0,0.0001452,2]
[324808715,1714339923556,-864.97,0.0001452,2]
[324808716,1714339923566,-718.49,0.0001452,2]
[324808717,1714339923575,-504.53,0.0001452,2]
[324808718,1714339923585,-594.05,0.0001452,2]
[324808719,1714339923594,-500.0,0.0001452,2]
[324808720,1714339923603,-500.0,0.0001452,2]
[324808721,1714339923612,-500.0,0.0001452,2]
[324808722,1714339923783,-870.38,0.0001452,2]
[324808723,1714339923798,-501.18,0.0001452,2]
[324808724,1714339923808,-500.0,0.0001452,2]
[324808725,1714339923818,-500.0,0.0001452,2]
[324808726,1714339923829,-500.0,0.0001452,2]
[324808727,1714339923839,-500.0,0.0001452,2]
[324808728,1714339923848,-500.0,0.0001452,2]
[324808729,1714339923858,-500.0,0.0001452,2]
[324808730,1714339923869,-610.01,0.0001452,2]
[324808731,1714339923878,-500.0,0.0001452,2]
[324808732,1714339923888,-567.57,0.0001452,2]
[324808733,1714339923898,-500.0,0.0001452,2]
[324808734,1714339923908,-1451.39,0.0001452,2]
[324808735,1714339923917,-500.0,0.0001452,2]
[324808736,1714339923927,-1302.89,0.0001452,2]
[324808737,1714339923937,-500.0,0.0001452,2]
[324808738,1714339923948,-545.45,0.0001452,2]
[324808739,1714339923959,-500.0,0.0001452,2]
[324808740,1714339923969,-500.0,0.0001452,2]
[324808741,1714339923978,-500.0,0.0001452,2]
[324808742,1714339923987,-500.0,0.0001452,2]
[324808743,1714339923996,-525.6,0.0001452,2]
[324808744,1714339924006,-500.0,0.0001452,2]
[324808745,1714339924016,-500.0,0.0001452,2]
[324808746,1714339924026,-585.48,0.0001452,2]
[324808747,1714339924035,-584.64,0.0001452,2]
[324808748,1714339924047,-857.33,0.0001452,2]
[324808749,1714339924057,-500.0,0.0001452,2]
[324808750,1714339924066,-704.02,0.0001452,2]
[324808751,1714339924076,-500.0,0.0001452,2]
[324808752,1714339924086,-1320.75,0.0001452,2]
[324808753,1714339924096,-500.0,0.0001452,2]
[324808754,1714339924106,-507.58,0.0001452,2]
[324808755,1714339924117,-615.24064876,0.0001452,2]
[324808756,1714339924127,-730.12,0.0001452,2]
[324808757,1714339924137,-596.65,0.0001452,2]
[324808758,1714339924147,-500.0,0.0001452,2]
[324808759,1714339924158,-369.9,0.0001452,2]
[324808760,1714339924168,-565.97,0.0001452,2]
[324808761,1714339924177,-500.0,0.0001452,2]
[324808762,1714339924187,-875.78,0.0001452,2]
[324808763,1714339924198,-452.20132701,0.0001452,2]
[324808764,1714339924208,-500.0,0.0001452,2]
[324808765,1714339924219,-526.69,0.0001452,2]
[324808766,1714339924229,-560.54,0.0001452,2]
[324808767,1714339924239,-736.07,0.0001452,2]
[324808768,1714339924248,-500.0,0.0001452,2]
[324808769,1714339924258,-604.78,0.0001452,2]
[324808770,1714339924268,-500.0,0.0001452,2]
[324808771,1714339924278,-500.0,0.0001452,2]
[324808772,1714339924288,-500.0,0.0001452,2]
[324808773,1714339924297,-500.0,0.0001452,2]
[324808774,1714339924307,-523.54,0.0001452,2]
[324808775,1714339924316,-2956.01,0.0001452,2]
[324808776,1714339924326,-500.0,0.0001452,2]
[324808777,1714339924335,-565.94,0.0001452,2]
[324808778,1714339924345,-500.0,0.0001452,2]
[324808779,1714339924354,-500.0,0.0001452,2]
[324808780,1714339924364,-500.0,0.0001452,2]
[324808781,1714339924374,-825.93,0.0001452,2]
[324808782,1714339924383,-602.04,0.0001452,2]
[324808783,1714339924393,-651.65,0.0001452,2]
[324808784,1714339924403,-1568.74,0.0001452,2]
[324808785,1714339924412,-520.26,0.0001452,2]
[324808786,1714339924421,-500.0,0.0001452,2]
[324808787,1714339924431,-500.0,0.0001452,2]
[324808788,1714339924441,-500.0,0.0001452,2]
[324808789,1714339924450,-1140.77,0.0001452,2]
[324808790,1714339924459,-500.0,0.0001452,2]
[324808791,1714339924469,-549.86,0.0001452,2]
[324808792,1714339924479,-960.02,0.0001452,2]
[324808793,1714339924489,-1723.08,0.0001452,2]
[324808794,1714339924499,-500.0,0.0001452,2]
[324808795,1714339924508,-500.0,0.0001452,2]
[324808796,1714339924517,-555.74,0.0001452,2]